Cogmind - Beta 14 @@@ ROGUE MODE // 2025.03.08 @ 16:33:10 Player: winnking222 Result: Destroyed by U7-2CD(R) with Subdweller Laser Performance ------------- Evolutions (0) 0 Regions Visited (3) 600 Robots Destroyed (30) 150 Value Destroyed (668) 668 Prototype IDs (0) 0 Alien Tech Used (0) 0 Bonus (72) 72 TOTAL SCORE: 1490 Bonus ------- Follower Combat Kills 92 Friendly Fire -20 Cogmind --------- Core Integrity 0/250 Matter 240/300 Energy 127/160 System Corruption 1% Temperature Cool (6) Movement Treading (160) Location -10/Subcaves Parts ------- > --- POWER (1) -------- Light Nuclear Core > --- PROPULSION (2) --- Spiked Treads Spiked Treads > --- UTILITY (2) ------ Large Storage Unit Makeshift System Restoration Module > --- WEAPON (2) ------- Heavy Riot Gun Subdweller Machine Gun > --- INVENTORY (15) --- Subdweller Power Source Subdweller Power Source Spiked Treads Subdweller Monowheel Subdweller Monowheel Medium Matter Pod (100) Light Armor Plating Subdweller Laser Subdweller Beam Cannon Subdweller Machine Gun Light Cannon Light Cannon Grenade Launcher Subdweller Shrapnel Launcher Dirty Datajack (20) Peak State ------------ > --- POWER ------------ Light Nuclear Core > --- PROPULSION ------- Spiked Treads Spiked Treads > --- UTILITY ---------- Large Storage Unit Makeshift System Restoration Module > --- WEAPON ----------- Heavy Riot Gun Subdweller Machine Gun > --- INVENTORY -------- Subdweller Power Source Subdweller Power Source Light Treads Subdweller Monowheel Subdweller Monowheel Medium Matter Pod Light Armor Plating Subdweller Laser Subdweller Beam Cannon Subdweller Machine Gun Light Cannon Light Cannon Grenade Launcher Subdweller Shrapnel Launcher Dirty Datajack [Rating: 20] Favorites ----------- Power Ion Engine Engine Ion Engine Power Core Light Nuclear Core Propulsion Light Treads Treads Light Treads Utility Targeting Computer Device Makeshift System Restoration Module Storage Large Storage Unit Processor Targeting Computer Weapon EM Pulse Gun Energy Gun EM Pulse Gun Ballistic Gun Subdweller Machine Gun Ballistic Cannon Light Cannon Launcher Grenade Launcher Build | -11 -10 -10 -10 ------- Run | Yrd Mat Min Sub Slots Evolved . | . . . . Power . | . . . . Propulsion . | . . . . Utility . | . . . . Weapon . | . . . . Parts Attached 22 | 5 2 2 13 Power 2 | 1 . . 1 Engine 1 | 1 . . . Core 1 | . . . 1 Reactor . | . . . . Propulsion 6 | 2 . 1 3 Treads 6 | 2 . 1 3 Leg . | . . . . Wheel . | . . . . Hover . | . . . . Flight . | . . . . Utility 3 | . 2 . 1 Device 1 | . . . 1 Storage 1 | . 1 . . Processor 1 | . 1 . . Hackware . | . . . . Protection . | . . . . Artifact . | . . . . Weapon 11 | 2 . 1 8 Energy Gun 4 | 2 . 1 1 Energy Cannon . | . . . . Ballistic Gun 3 | . . . 3 Ballistic Cannon 3 | . . . 3 Launcher 1 | . . . 1 Special Weapon . | . . . . Impact Weapon . | . . . . Slashing Weapon . | . . . . Piercing Weapon . | . . . . Special Melee Weapon . | . . . . Unidentified Prototypes . | . . . . Parts Lost 4 | . . 1 3 Power 1 | . . . 1 Propulsion . | . . . . Utility . | . . . . Weapon 3 | . . 1 2 Highest Loss Streak 3 | . . 1 3 To Critical Strikes . | . . . . Average Slot Usage (%) 96 | . 86 100 99 Engine 7 | . 14 14 . Core 6 | . . . 13 Treads 28 | . 28 28 28 Storage 11 | . 4 14 14 Processor 12 | . 10 14 12 Energy Gun 18 | . 28 28 7 Ballistic Gun 7 | . . . 15 Ballistic Cannon 1 | . . . 3 Peak Build Rating 20 | 5 8 9 20 Average Rating 10 | 4 6 8 15 On Entrance 5 | . 5 8 9 Naked Turns . | . . . . Heaviest Build 38 | 9 29 30 38 Greatest Support 40 | 40 40 40 40 Greatest Overweight (x) . | . . . . Average Overweight (x) . | . . . . Largest Inventory Capacity 15 | 5 15 15 15 Average Capacity 13 | 5 8 15 15 Most Carried 15 | 5 10 13 15 Average Carried 10 | 2 6 10 14 Final Capacity 15 | 5 15 15 15 Final Carried 15 | 3 10 13 15 Class Distribution -------------------- 96% | Mutant 3% | Derelict-Mutant Dominant Class ---------------- Mutant | -10/Materials Mutant | -10/Mines Mutant | -10/Subcaves Resources | -11 -10 -10 -10 ----------- Run | Yrd Mat Min Sub Matter Collected 833 | 250 136 45 402 Remotely . | . . . . Salvage Created 952 | 47 381 265 259 Parts 68 | 5 20 27 16 Haulers Intercepted 1 | . 1 . . Recyclers Shooed . | . . . . Parts Field Recycled . | . . . . Retrieved Matter . | . . . . Parts Self-Destructed 3 | . . . 3 Prevented . | . . . . Kills | -11 -10 -10 -10 ------- Run | Yrd Mat Min Sub Combat Hostiles Destroyed 23 | . 4 11 8 Guns 19 | . 4 10 5 Cannons 3 | . . . 3 AOE 1 | . . 1 . Classes Destroyed 10 | 1 6 2 1 Worker 1 | . 1 . . Builder 1 | . 1 . . Tunneler 2 | 2 . . . Hauler 1 | . 1 . . Recycler 1 | . 1 . . Operator 1 | . 1 . . Swarmer 10 | . . 9 1 Grunt 4 | . 4 . . Sentry 3 | . . 2 1 Subdweller 6 | . . . 6 Best Kill Streak 3 | 2 3 3 2 Combat Bots Only 3 | . 1 3 2 Max Kills in Single Turn 2 | 1 2 1 1 Gunslinging . | . . . . Exploded 1 | . . 1 . Melee . | . . . . Uniques/NPCs Destroyed . | . . . . Combat | -11 -10 -10 -10 -------- Run | Yrd Mat Min Sub Hostile Shots Fired 108 | . 12 45 51 Missed 28 | . 7 13 8 Damage Taken 1340 | 29 54 284 973 Core 271 | 29 20 42 180 Absorbed by Shields . | . . . . Core Remaining (%) 88 | 88 . . . Volleys Fired 92 | 2 29 21 40 Largest 2 | 2 2 2 2 Hottest 105 | 80 80 105 105 Shots Fired 174 | 4 57 40 73 Gun 146 | 4 57 40 45 Cannon 21 | . . . 21 Launcher 7 | . . . 7 Special . | . . . . Kinetic 55 | . . . 55 Thermal 7 | . . 4 3 Explosive 7 | . . . 7 Electromagnetic 105 | 4 57 36 8 Robot Hit Streak 17 | 4 11 10 17 Robot Miss Streak 4 | . 2 4 1 Penetration Max . | . . . . Secondary Targets 1 | . . 1 . Max Gunslinging Chain 1 | . . 1 . Shots Hit Robots 114 | 4 36 26 48 Core Hits 45 | 2 14 14 15 Critical Kills 1 | . . . 1 Critical Parts Destroyed . | . . . . Critical Strikes 3 | . . 1 2 Destroy 2 | . . . 2 Corrupt 1 | . . 1 . Melee Attacks . | . . . . Impact . | . . . . Slashing . | . . . . Piercing . | . . . . Sneak Attacks . | . . . . Combat Hostiles . | . . . . Follow-up Attacks . | . . . . Damage Inflicted 1995 | 78 557 416 944 Guns 1577 | 37 511 306 723 Cannons 221 | . . . 221 Explosions 191 | 41 46 104 . Melee . | . . . . Ramming 6 | . . 6 . Kinetic 829 | . . . 829 Thermal 268 | 41 46 150 31 Explosive . | . . . . Electromagnetic 892 | 37 511 260 84 Impact . | . . . . Slashing . | . . . . Piercing . | . . . . Highest Corruption 2 | . 2 2 2 Average Corruption 1 | . 2 2 1 Corruption Purged 1 | . . . 1 Corruption Blocked . | . . . . Effects 41 | . 9 14 18 Message Errors 10 | . 2 3 5 Matter Fused 8 | . 2 3 3 Heat Flow Errors 4 | . 2 1 1 Energy Discharges 7 | . . 2 5 Data Loss (minor) 8 | . 1 5 2 Data Loss (major) 1 | . 1 . . Misfires 2 | . . . 2 Weapon Failures 1 | . 1 . . Overload Shots . | . . . . Overflow Damage . | . . . . Projectiles . | . . . . Explosions . | . . . . Melee . | . . . . Knockbacks 2 | . . . 2 Impact . | . . . . Kinetic 2 | . . . 2 Secondary . | . . . . Self-Inflicted Damage 38 | 29 . . 9 Shots 3 | 1 . . 2 Rammed 1 | . . 1 . Targets Rammed 1 | . . 1 . Kicked . | . . . . Crushed . | . . . . Highest Temperature 211 | 30 211 137 106 Average Temperature 50 | 17 54 47 41 Received Heat Transfer 204 | . 30 36 138 Siege Activations . | . . . . Robots Corrupted 1 | . 1 . . Combat Hostiles . | . . . . Parts Fried 3 | . 3 . . Impact Corruptions . | . . . . Robots Melted . | . . . . Combat Hostiles . | . . . . Parts Melted 1 | . . . 1 Heat Transferred 435 | 50 50 261 74 Parts Sabotaged . | . . . . Parts Stolen . | . . . . Parts Stripped . | . . . . Power Chain Reactions 3 | 1 1 1 . Alert | -11 -10 -10 -10 ------- Run | Yrd Mat Min Sub Peak Influence 185 | 10 165 185 . Initial 6 | . 6 . . Average 61 | 2 46 83 . Maximum Alert Level . | . . . . Low Security (%) 100 | 100 100 100 . Level 1 . | . . . . Level 2 . | . . . . Level 3 . | . . . . Level 4 . | . . . . Level 5 . | . . . . High Security . | . . . . Max Security . | . . . . Squads Dispatched 1 | . 1 . . Investigation . | . . . . Extermination . | . . . . Reinforcement 1 | . 1 . . Assault . | . . . . Garrison . | . . . . Intercept . | . . . . Searches Triggered . | . . . . Construction Impeded . | . . . . Haulers Reinforced . | . . . . Active Scanning Responses . | . . . . Cargo Convoy Interrupts . | . . . . Stealth | -11 -10 -10 -10 --------- Run | Yrd Mat Min Sub Distress Signals 1 | . 1 . . Communications Jammed . | . . . . Distress Signals . | . . . . Times Spotted 34 | . 10 13 11 Peak Tracking Total 3 | . 2 3 2 Tactical Retreats 2 | . . 2 . Traps | -11 -10 -10 -10 ------- Run | Yrd Mat Min Sub Traps Triggered 3 | . 1 . 2 Indirectly . | . . . . Trap Hack Attempts . | . . . . Triggered . | . . . . Disarmed . | . . . . Reprogrammed . | . . . . Reused . | . . . . Traps Extracted . | . . . . Installed . | . . . . Triggered . | . . . . Machines | -11 -10 -10 -10 ---------- Run | Yrd Mat Min Sub Machines Disabled . | . . . . Max in Single Turn . | . . . . Machines Repaired . | . . . . Machines Dismantled . | . . . . Machines Sabotaged . | . . . . Overloaded Fab Kills . | . . . . Hacking | -11 -10 -10 -10 --------- Run | Yrd Mat Min Sub Machines Accessed 4 | . 4 . . Terminals 3 | . 3 . . Fabricators . | . . . . Repair Stations . | . . . . Recycling Units 1 | . 1 . . Scanalyzers . | . . . . Garrison Access . | . . . . Total Hacks 10 | . 10 . . Successful 5 | . 5 . . Failed 5 | . 5 . . Catastrophic 1 | . 1 . . Database Lockouts . | . . . . Manual . | . . . . Terminals 6 | . 6 . . Fabricators . | . . . . Repair Stations . | . . . . Recycling Units 4 | . 4 . . Scanalyzers . | . . . . Garrison Access . | . . . . Terminal Hacks 3 | . 3 . . Level Access Points 1 | . 1 . . Emergency Access Points 1 | . 1 . . Zone Layout 1 | . 1 . . Fabricator Hacks . | . . . . Repair Station Hacks . | . . . . Recycling Unit Hacks 2 | . 2 . . Retrieve Matter 1 | . 1 . . Retrieve Components 1 | . 1 . . Scanalyzer . | . . . . Garrison Access Hacks . | . . . . Unauthorized Hacks . | . . . . Terminals . | . . . . Fabricators . | . . . . Repair Stations . | . . . . Recycling Units . | . . . . Scanalyzers . | . . . . Garrison Access . | . . . . Data Cores Recovered . | . . . . Used . | . . . . Hacking Detections 3 | . 3 . . Full Trace Events . | . . . . Feedback Events . | . . . . Feedback Blocked . | . . . . Robot Schematics Acquired . | . . . . Robots Built . | . . . . Authchips . | . . . . Time . | . . . . Total Robot Build Rating . | . . . . Part Schematics Acquired . | . . . . Parts Built . | . . . . Authchips . | . . . . Time . | . . . . Total Part Build Rating . | . . . . Parts Repaired . | . . . . Time . | . . . . Parts Recycled . | . . . . Recycled Matter . | . . . . Retrieved Matter 61 | . 61 . . Retrieved Components 10 | . 10 . . Parts Scanalyzed . | . . . . Part Schematics Acquired . | . . . . Parts Damaged . | . . . . Bothacking | -11 -10 -10 -10 ------------ Run | Yrd Mat Min Sub Used RIF Installer . | . . . . Robots Hacked . | . . . . Non-combat . | . . . . Combat . | . . . . Robot Hacks Applied . | . . . . Relay Couplers Released . | . . . . Fabnet Peak Effective % . | . . . . Robots Rewired 1 | . 1 . . Allies Hacked . | . . . . Hacks Repelled . | . . . . Allies | -11 -10 -10 -10 -------- Run | Yrd Mat Min Sub Total Allies 1 | . 1 . . Largest Group 1 | . 1 1 . Highest-Rated Group 16 | . 16 16 . Highest-Rated Ally 16 | . 16 16 . Total Orders . | . . . . Ally Attacks 15 | . 14 1 . Total Damage 184 | . 170 14 . Kills 5 | . 4 1 . Allies Corrupted . | . . . . Allies Melted . | . . . . Intel | -11 -10 -10 -10 ------- Run | Yrd Mat Min Sub Robot Analysis Total . | . . . . Derelict Logs Recovered 2 | . . 2 . Drone Launches . | . . . . Drone Recoveries . | . . . . Exploration | -11 -10 -10 -10 ------------- Run | Yrd Mat Min Sub Turns Passed 3100 | 78 848 770 1404 Spaces Moved 1284 | 47 459 360 418 Core 14 | 14 . . . Treads 1270 | 33 459 360 418 Legs . | . . . . Wheels . | . . . . Hover . | . . . . Flight . | . . . . Fastest Speed 50 | 50 160 160 160 Average Speed 158 | 127 160 160 160 Slowest Speed 160 | 160 160 160 160 Overloaded Moves . | . . . . Propulsion Burnouts . | . . . . Robots Hopped . | . . . . Cave-ins Triggered . | . . . . Exploration Rate (%) 42 | 3 61 69 36 Regions Visited 3 Branch Regions 2 Pre-discovered Areas . | . . . . Known Exits Taken 1 | . . 1 . Unknown Exits Taken 2 | 1 1 . . Scrap Searched 1 | . . 1 . Spaces Dug 4 | . . . 4 Terrain Destroyed 41 | 2 2 3 34 Melee . | . . . . Projectile . | . . . . AOE 41 | 2 2 3 34 Terrain Rammed . | . . . . Walls Destroyed . | . . . . Machines Disabled . | . . . . Actions | -11 -10 -10 -10 --------- Run | Yrd Mat Min Sub Total 2170 | 61 514 513 1082 Wait 722 | . 11 126 585 Move 1281 | 46 458 359 418 Hop . | . . . . Pick Up 34 | 8 8 4 14 Fast Attach 3 | . 2 . 1 Attach 9 | 5 . 1 3 Detach . | . . . . Swap 10 | . . 1 9 Drop 13 | . 1 . 12 Fire 92 | 2 29 21 40 Melee . | . . . . Ram . | . . . . Kick . | . . . . Crush 1 | . . 1 . Escape Stasis . | . . . . Rewire 5 | . 5 . . Trap . | . . . . Miscellaneous . | . . . . Route ------- -11/Scrapyard -10/Materials (discovered 5 exits: *Mat x3 / [*Min x2]) -10/Mines (discovered 2 exits: *Mat / *Sub) -10/Subcaves (discovered 1 exit: [*Mat]) History --------- Turn | Location | Event 6 | -11/Scrapyard | Discovered new exit (range 15) 79 | -11/Scrapyard | Entered Materials 111 | -10/Materials | Identified exit to Materials 297 | -10/Materials | Discovered new exit (range 13) 308 | -10/Materials | Build established: Mutant 464 | -10/Materials | Discovered new exit (range 13) 927 | -10/Materials | Entered Mines 927 | -10/Mines | Accompanied by 1 ally 1304 | -10/Mines | Learned Materials non-interactive machine intel 1459 | -10/Mines | Identified exit to Subcaves 1539 | -10/Mines | Discovered exit to Materials (range 5) 1697 | -10/Mines | Entered Subcaves 1722 | -10/Subcaves | Core integrity fell below 50% 1763 | -10/Subcaves | Lost 3 parts (1p2w) 1788 | -10/Subcaves | Shifting Twisted Machinery released Sub. Power Source 1964 | -10/Subcaves | Shifting Twisted Machinery released Sub. Machine Gun 2055 | -10/Subcaves | A swath of the cavern ceiling suddenly collapsed 2323 | -10/Subcaves | Core integrity fell below 20% 2385 | -10/Subcaves | Shifting Twisted Machinery released Mak. Spear 2409 | -10/Subcaves | Shifting Twisted Machinery released Sub. Shrapnel Launcher 2972 | -10/Subcaves | Discovered new exit (range 4) 2974 | -10/Subcaves | Shifting Twisted Machinery released Mak. System Restoration Module 2975 | -10/Subcaves | Shifting Twisted Machinery released Spk. Treads 3101 | -10/Subcaves | Destroyed by U7-2CD(R) with Subdweller Laser Last Messages --------------- 02571_ System corrupted: Heat flow error (+142). 02571_ Triggered Piercing Trap. 02571_ Spikes shoot up from the floor. 02571_ Critical hit (Impale). 02651_ System corrupted: Energy discharge (-35). 02816_ System corrupted: Matter fused (-7). 02906_ System corrupted: Matter fused (-6). 02942_ Triggered Piercing Trap. 02942_ Spikes shoot up from the floor. 02942_ Critical hit (Impale). 02972_ EXIT=FOUND Mak. System Restoration Module falls loose from the Twisted Machinery. Spk. Treads falls loose from the Twisted Machinery. 02975_ Discarded Targeting Computer. 02977_ Acquired Mak. System Restoration Module. 02990_ Mak. System Restoration Module purges 1% system corruption (1%). 03039_ System corrupted: Energy discharge (-54). 03057_ Dropped Lgt. Treads. 03092_ U7-2CD(R) suffers critical hit (Destroy). 03099_ U7-2CD(R) IFF system glitched. Map ----- +----------------------------------------------------+ | ?????????????????????????????????????????????????? | | ?????????????????????????????????????????????????? | | ?????????????????????????????????????????????????? | | ?????????????????????????????????????????????????? | | ?????????????????????????????????????????????????? | | ?????????????????????????????????????????????????? | | ?????????????????????????????????????????????????? | | ?????????????????????????????????????????????????? | | ?????????????????????????????????????????????????? | | ?????????????????? ??????????????????????????????? | | ?????????????????# ??????????????????????????????? | | ?????????????????# ??????????????????????????????? | | ???????????????### ?????????????????????????????? | | ???????????????# ?????????????????????????????? | | ???????????????# ?????????????????????????????? | | ????????????????# ????????????????????????????? | | ?????????????????# ????????????????????????????? | | ??????????????????# ????????????????????????????? | | ??????????????????# ####????????????????????????? | | ??????????????????# ##???????????????????????? | | ??????????????????# #???????????????????????? | | ??????????????????### #???????????????????????? | | ??????????????######## ##??????????????????????? | | ??????????????# #" # # #??????????????????????? | | ??????????????# "= #??????????????????????? | | ?????????????##" # @### """"#?????????????? | | ?????????????#" ##### R "" "?????????????? | | ###??????????## ##??# R """?????????????? | | ^ #??????????# < ##?# ""????????????? | | ##?????###?#" ""#### "#???????????? | | ^ ##???## ### " """### #???????????? | | ^#??## " " #?# ##???????????? | | ^ #### """" #?## #####????????????? | | ## """##### ##??## ##????????????????? | | ^ ^^ """"#???####????## #?????????????????? | | ## ^ ^ ^ ^#???????????? ##?????????????????? | | ?#### ^ ##???????????? ###??????????????????? | | ????#########?????????????###????????????????????? | | ?????????????????????????????????????????????????? | | ?????????????????????????????????????????????????? | | ?????????????????????????????????????????????????? | | ?????????????????????????????????????????????????? | | ?????????????????????????????????????????????????? | | ?????????????????????????????????????????????????? | | ?????????????????????????????????????????????????? | | ?????????????????????????????????????????????????? | | ?????????????????????????????????????????????????? | | ?????????????????????????????????????????????????? | | ?????????????????????????????????????????????????? | | ?????????????????????????????????????????????????? | +----------------------------------------------------+ Best States ------------- Heat Dissipation 25 Energy Generation 14 Energy Capacity 250 Matter Stores 300 Matter Capacity 300 Sight Range 16 Terrain Scan Density 10 Evasion (%) 50 Targeting Accuracy 5 Recoil Reduction 2 Item Schematics ----------------- None Robot Schematics ------------------ None Fabricated ------------ Nothing Alien Tech Used ----------------- None Achievements -------------- None Challenges ------------ None Game ------ Seed VampiricContainmentBasin Manual? 0 Play Time 00:17:22 Cumulative 33.1 hours Start 2025.03.08 @ 16:16:04 End 2025.03.08 @ 16:33:10 Sessions 1 Manual Loads 0 Difficulty Rogue Special Mode None Game No. 62 Rogue 62 Adventurer 0 Explorer 0 Win Type - Total 0 Types 0/0/0/0/0/0/0/0/0 Lore% 34 Gallery% 35 Achievement% 30 Wizard Run 0 Options --------- Layout 0 ASCII 0 Keyboard 0 Movement Mouse Keybinds 0 Fullscreen 1 Font 16/SmallcapsGlow Map View 75x55 Zoom Use 0% Tactical HUD 1 Map Filters NONE Filters NONE Steam 1 RUN: 6d680c1c-e911-4f24-a734-4451e5d3da24